[Event "Titled Tuesday Blitz January 17 Early 2023"]
[White "Flores Quillas, Diego Saul Rodri"]
[Black "Baskakov, Egor"]
[WhiteFideId "3822508"]
[BlackFideId "24197866"]
[WhiteElo "2359"]
[BlackElo "2215"]
[Result "0-1"]
[Round "01"]
[TimeControl "180+2"]
[Date "2023.01.17"]
[WhiteClock "0:00:25"]
[BlackClock "0:00:21"]

1. e4 {[%clk 0:02:58]}  c5 {[%clk 0:02:58]} 2. Nf3 {[%clk 0:02:53]}  Nf6 {[%clk 0:02:57]} 3. d4 {[%clk 0:02:52]}  Nxe4 {[%clk 0:02:57]} 4. d5 {[%clk 0:02:49]}  d6 {[%clk 0:02:57]} 5. Bd3 {[%clk 0:02:44]}  Nf6 {[%clk 0:02:57]} 6. c4 {[%clk 0:02:44]}  g6 {[%clk 0:02:57]} 7. O-O {[%clk 0:02:43]}  Bg7 {[%clk 0:02:58]} 8. Nc3 {[%clk 0:02:42]}  O-O {[%clk 0:02:57]} 9. h3 {[%clk 0:02:39]}  e5 {[%clk 0:02:53]} 10. dxe6 {[%clk 0:02:38]}  Bxe6 {[%clk 0:02:53]} 11. Bg5 {[%clk 0:02:38]}  h6 {[%clk 0:02:50]} 12. Bh4 {[%clk 0:02:37]}  g5 {[%clk 0:02:46]} 13. Bg3 {[%clk 0:02:37]}  d5 {[%clk 0:02:45]} 14. cxd5 {[%clk 0:02:21]}  Nxd5 {[%clk 0:02:46]} 15. Nxd5 {[%clk 0:02:20]}  Qxd5 {[%clk 0:02:36]} 16. Qe2 {[%clk 0:02:16]}  Nc6 {[%clk 0:02:30]} 17. Rfd1 {[%clk 0:02:10]}  Nd4 {[%clk 0:02:24]} 18. Nxd4 {[%clk 0:02:07]}  cxd4 {[%clk 0:02:25]} 19. Rac1 {[%clk 0:02:02]}  Rfe8 {[%clk 0:02:17]} 20. Be4 {[%clk 0:01:54]}  Qxa2 {[%clk 0:02:07]} 21. Bxb7 {[%clk 0:01:32]}  Bd5 {[%clk 0:01:47]} 22. Qb5 {[%clk 0:01:15]}  Bxb7 {[%clk 0:01:40]} 23. Qxb7 {[%clk 0:01:16]}  a5 {[%clk 0:01:29]} 24. h4 {[%clk 0:00:58]}  gxh4 {[%clk 0:01:21]} 25. Bxh4 {[%clk 0:00:58]}  Rab8 {[%clk 0:01:19]} 26. Qd7 {[%clk 0:00:59]}  Qxb2 {[%clk 0:01:14]} 27. Rc7 {[%clk 0:00:57]}  Qb3 {[%clk 0:01:14]} 28. Rd3 {[%clk 0:00:57]}  Qe6 {[%clk 0:01:11]} 29. Qa4 {[%clk 0:00:54]}  Qe4 {[%clk 0:00:37]} 30. Rh3 {[%clk 0:00:35]}  Rb1+ {[%clk 0:00:26]} 31. Kh2 {[%clk 0:00:34]}  Qe1 {[%clk 0:00:27]} 32. f3 {[%clk 0:00:25]}  Be5+ {[%clk 0:00:21]} 0-1


[Site "https://www.chess.com"]

[Event "Titled Tuesday Blitz January 17 Early 2023"]
[White "Sanchez, Robert"]
[Black "Galchenko, Matvey"]
[WhiteFideId "2034360"]
[BlackFideId "24175480"]
[WhiteElo "1966"]
[BlackElo "2438"]
[Result "0-1"]
[Round "01"]
[TimeControl "180+2"]
[Date "2023.01.17"]
[WhiteClock "0:00:18"]
[BlackClock "0:00:17"]

1. e4 {[%clk 0:03:00]}  e6 {[%clk 0:02:59]} 2. d4 {[%clk 0:03:00]}  d5 {[%clk 0:02:59]} 3. Nc3 {[%clk 0:03:00]}  Bb4 {[%clk 0:02:59]} 4. e5 {[%clk 0:03:00]}  Ne7 {[%clk 0:02:59]} 5. Bd2 {[%clk 0:03:00]}  b6 {[%clk 0:02:58]} 6. Nf3 {[%clk 0:02:59]}  Ba6 {[%clk 0:02:56]} 7. Bxa6 {[%clk 0:02:59]}  Nxa6 {[%clk 0:02:57]} 8. O-O {[%clk 0:02:59]}  O-O {[%clk 0:02:57]} 9. Qe2 {[%clk 0:02:58]}  Bxc3 {[%clk 0:02:52]} 10. Bxc3 {[%clk 0:02:51]}  Nb8 {[%clk 0:02:45]} 11. a4 {[%clk 0:02:39]}  c5 {[%clk 0:02:44]} 12. a5 {[%clk 0:02:38]}  Nbc6 {[%clk 0:02:43]} 13. a6 {[%clk 0:02:28]}  Qc7 {[%clk 0:02:39]} 14. Rfe1 {[%clk 0:02:26]}  Rfc8 {[%clk 0:02:34]} 15. Rad1 {[%clk 0:02:01]}  Rab8 {[%clk 0:02:21]} 16. h4 {[%clk 0:01:59]}  cxd4 {[%clk 0:01:49]} 17. Bxd4 {[%clk 0:01:57]}  b5 {[%clk 0:01:19]} 18. c3 {[%clk 0:01:50]}  b4 {[%clk 0:01:18]} 19. Ng5 {[%clk 0:01:46]}  h6 {[%clk 0:01:14]} 20. Nh3 {[%clk 0:01:28]}  Nxd4 {[%clk 0:01:02]} 21. cxd4 {[%clk 0:01:29]}  Nf5 {[%clk 0:01:00]} 22. Qg4 {[%clk 0:01:22]}  Qc2 {[%clk 0:00:51]} 23. Nf4 {[%clk 0:01:14]}  Qxb2 {[%clk 0:00:51]} 24. Nxd5 {[%clk 0:00:56]}  exd5 {[%clk 0:00:35]} 25. Qxf5 {[%clk 0:00:55]}  Rc6 {[%clk 0:00:35]} 26. e6 {[%clk 0:00:50]}  fxe6 {[%clk 0:00:34]} 27. Rxe6 {[%clk 0:00:50]}  Rf8 {[%clk 0:00:29]} 28. Qxd5 {[%clk 0:00:39]}  Qxf2+ {[%clk 0:00:28]} 29. Kh1 {[%clk 0:00:35]}  Qxh4+ {[%clk 0:00:28]} 30. Kg1 {[%clk 0:00:35]}  Qf2+ {[%clk 0:00:22]} 31. Kh1 {[%clk 0:00:34]}  Rxe6 {[%clk 0:00:23]} 32. Qxe6+ {[%clk 0:00:34]}  Kh8 {[%clk 0:00:24]} 33. d5 {[%clk 0:00:28]}  Rf4 {[%clk 0:00:18]} 34. Rd3 {[%clk 0:00:18]}  Qf1+ {[%clk 0:00:17]} 35. Kh2 {[%clk 0:00:18]}  Qxd3 {[%clk 0:00:17]} 0-1


[Site "https://www.chess.com"]

[Event "Titled Tuesday Blitz January 17 Early 2023"]
[White "Ohanyan, Emin"]
[Black "Tymrakiewicz, Rafal"]
[WhiteFideId "13312022"]
[BlackFideId "1108832"]
[WhiteElo "2444"]
[BlackElo "2144"]
[Result "1-0"]
[Round "01"]
[TimeControl "180+2"]
[Date "2023.01.17"]
[WhiteClock "0:00:30"]
[BlackClock "0:00:01"]

1. e4 {[%clk 0:02:53]}  Nf6 {[%clk 0:03:00]} 2. Nc3 {[%clk 0:02:50]}  d5 {[%clk 0:02:59]} 3. e5 {[%clk 0:02:47]}  Ne4 {[%clk 0:02:59]} 4. Nce2 {[%clk 0:02:47]}  f6 {[%clk 0:02:58]} 5. d3 {[%clk 0:02:24]}  Ng5 {[%clk 0:02:57]} 6. f4 {[%clk 0:02:22]}  Nf7 {[%clk 0:02:56]} 7. d4 {[%clk 0:02:20]}  c5 {[%clk 0:02:56]} 8. c3 {[%clk 0:02:19]}  Nc6 {[%clk 0:02:45]} 9. Nf3 {[%clk 0:02:19]}  Bg4 {[%clk 0:02:42]} 10. Neg1 {[%clk 0:02:16]}  cxd4 {[%clk 0:02:42]} 11. cxd4 {[%clk 0:02:16]}  e6 {[%clk 0:02:31]} 12. h3 {[%clk 0:02:11]}  Bf5 {[%clk 0:02:22]} 13. Bd3 {[%clk 0:02:03]}  Bxd3 {[%clk 0:02:11]} 14. Qxd3 {[%clk 0:02:04]}  Nb4 {[%clk 0:02:05]} 15. Qb3 {[%clk 0:01:58]}  Rc8 {[%clk 0:01:59]} 16. Kf2 {[%clk 0:01:53]}  Be7 {[%clk 0:01:38]} 17. Ne2 {[%clk 0:01:33]}  fxe5 {[%clk 0:01:33]} 18. fxe5 {[%clk 0:01:17]}  O-O {[%clk 0:01:33]} 19. Rf1 {[%clk 0:01:11]}  Qc7 {[%clk 0:01:03]} 20. Kg1 {[%clk 0:01:02]}  Qc2 {[%clk 0:01:00]} 21. Nf4 {[%clk 0:00:57]}  Nd8 {[%clk 0:00:54]} 22. Bd2 {[%clk 0:00:47]}  Qxb3 {[%clk 0:00:49]} 23. axb3 {[%clk 0:00:48]}  a6 {[%clk 0:00:45]} 24. Rac1 {[%clk 0:00:44]}  Rxc1 {[%clk 0:00:36]} 25. Rxc1 {[%clk 0:00:45]}  g5 {[%clk 0:00:16]} 26. Nh5 {[%clk 0:00:44]}  Ndc6 {[%clk 0:00:14]} 27. Bxg5 {[%clk 0:00:44]}  Bxg5 {[%clk 0:00:13]} 28. Nxg5 {[%clk 0:00:45]}  Nxd4 {[%clk 0:00:13]} 29. Nf6+ {[%clk 0:00:46]}  Kg7 {[%clk 0:00:12]} 30. Rc7+ {[%clk 0:00:45]}  Kg6 {[%clk 0:00:12]} 31. Ngxh7 {[%clk 0:00:46]}  Rf7 {[%clk 0:00:08]} 32. Rc8 {[%clk 0:00:46]}  Rxh7 {[%clk 0:00:07]} 33. Nxh7 {[%clk 0:00:46]}  Kxh7 {[%clk 0:00:07]} 34. Rc7+ {[%clk 0:00:47]}  Kg6 {[%clk 0:00:07]} 35. Rxb7 {[%clk 0:00:48]}  Nd3 {[%clk 0:00:07]} 36. Rb6 {[%clk 0:00:47]}  Nxe5 {[%clk 0:00:07]} 37. Rxa6 {[%clk 0:00:47]}  Nd3 {[%clk 0:00:07]} 38. Ra8 {[%clk 0:00:38]}  Kf5 {[%clk 0:00:07]} 39. h4 {[%clk 0:00:38]}  Nxb3 {[%clk 0:00:04]} 40. h5 {[%clk 0:00:38]}  Nd4 {[%clk 0:00:04]} 41. Rg8 {[%clk 0:00:31]}  Ne2+ {[%clk 0:00:01]} 42. Kf1 {[%clk 0:00:30]} 1-0


[Site "https://www.chess.com"]

[Event "Titled Tuesday Blitz January 17 Early 2023"]
[White "Begunov, Konstantin"]
[Black "Maximov, Dmitry"]
[WhiteFideId "4118510"]
[BlackFideId "14105659"]
[WhiteElo "2325"]
[BlackElo "2497"]
[Result "0-1"]
[Round "01"]
[TimeControl "180+2"]
[Date "2023.01.17"]
[WhiteClock "0:00:03"]
[BlackClock "0:00:19"]

1. d4 {[%clk 0:02:57]}  Nf6 {[%clk 0:02:59]} 2. c4 {[%clk 0:02:57]}  g6 {[%clk 0:02:59]} 3. f3 {[%clk 0:02:57]}  Bg7 {[%clk 0:02:59]} 4. e4 {[%clk 0:02:57]}  O-O {[%clk 0:03:00]} 5. Nc3 {[%clk 0:02:58]}  d6 {[%clk 0:03:00]} 6. Be3 {[%clk 0:02:59]}  b6 {[%clk 0:02:59]} 7. Bd3 {[%clk 0:02:58]}  a6 {[%clk 0:02:59]} 8. Nge2 {[%clk 0:02:58]}  c5 {[%clk 0:02:59]} 9. d5 {[%clk 0:02:58]}  e6 {[%clk 0:02:59]} 10. dxe6 {[%clk 0:02:58]}  Bxe6 {[%clk 0:02:58]} 11. O-O {[%clk 0:02:58]}  Nc6 {[%clk 0:02:58]} 12. Qd2 {[%clk 0:02:58]}  Ne5 {[%clk 0:02:51]} 13. b3 {[%clk 0:02:57]}  Qd7 {[%clk 0:02:52]} 14. a4 {[%clk 0:02:42]}  Rfd8 {[%clk 0:02:51]} 15. Bc2 {[%clk 0:02:37]}  Rab8 {[%clk 0:02:50]} 16. Rad1 {[%clk 0:02:36]}  h5 {[%clk 0:02:47]} 17. Bg5 {[%clk 0:02:34]}  Qc6 {[%clk 0:02:27]} 18. Nf4 {[%clk 0:02:30]}  Rd7 {[%clk 0:02:22]} 19. Nce2 {[%clk 0:01:22]}  Nh7 {[%clk 0:02:01]} 20. Bh4 {[%clk 0:01:14]}  b5 {[%clk 0:01:48]} 21. axb5 {[%clk 0:01:13]}  axb5 {[%clk 0:01:48]} 22. Nxe6 {[%clk 0:00:58]}  fxe6 {[%clk 0:01:48]} 23. f4 {[%clk 0:00:55]}  Nf7 {[%clk 0:01:33]} 24. e5 {[%clk 0:00:54]}  Nf8 {[%clk 0:01:32]} 25. exd6 {[%clk 0:00:46]}  bxc4 {[%clk 0:01:27]} 26. bxc4 {[%clk 0:00:43]}  Rxd6 {[%clk 0:01:27]} 27. Qe3 {[%clk 0:00:40]}  Rb2 {[%clk 0:01:24]} 28. Be4 {[%clk 0:00:36]}  Qc7 {[%clk 0:01:13]} 29. Bf2 {[%clk 0:00:33]}  Rdb6 {[%clk 0:00:57]} 30. Bf3 {[%clk 0:00:29]}  R6b3 {[%clk 0:00:55]} 31. Qe4 {[%clk 0:00:20]}  Nd6 {[%clk 0:00:51]} 32. Rxd6 {[%clk 0:00:11]}  Qxd6 {[%clk 0:00:51]} 33. Nc1 {[%clk 0:00:12]}  Rb4 {[%clk 0:00:48]} 34. Nd3 {[%clk 0:00:12]}  Rxf2 {[%clk 0:00:31]} 35. Rxf2 {[%clk 0:00:09]}  Rb1+ {[%clk 0:00:31]} 36. Rf1 {[%clk 0:00:10]}  Bd4+ {[%clk 0:00:30]} 37. Nf2 {[%clk 0:00:09]}  Rb2 {[%clk 0:00:22]} 38. g3 {[%clk 0:00:07]}  Kg7 {[%clk 0:00:20]} 39. Be2 {[%clk 0:00:06]}  e5 {[%clk 0:00:20]} 40. Bd3 {[%clk 0:00:05]}  exf4 {[%clk 0:00:19]} 41. gxf4 {[%clk 0:00:03]}  Qf6 {[%clk 0:00:19]} 0-1


[Site "https://www.chess.com"]

[Event "Titled Tuesday Blitz January 17 Early 2023"]
[White "Schrik, Rachid"]
[Black "Stribuk, Artiom"]
[WhiteFideId "1009818"]
[BlackFideId "13515659"]
[WhiteElo "2182"]
[BlackElo "2378"]
[Result "0-1"]
[Round "01"]
[TimeControl "180+2"]
[Date "2023.01.17"]
[WhiteClock "0:00:02"]
[BlackClock "0:00:46"]

1. d4 {[%clk 0:02:59]}  Nf6 {[%clk 0:02:59]} 2. c4 {[%clk 0:02:58]}  c5 {[%clk 0:02:58]} 3. d5 {[%clk 0:02:57]}  b5 {[%clk 0:02:58]} 4. cxb5 {[%clk 0:02:56]}  a6 {[%clk 0:02:58]} 5. f3 {[%clk 0:02:54]}  axb5 {[%clk 0:02:57]} 6. e4 {[%clk 0:02:52]}  b4 {[%clk 0:02:57]} 7. e5 {[%clk 0:02:52]}  Nh5 {[%clk 0:02:58]} 8. g4 {[%clk 0:02:37]}  e6 {[%clk 0:02:58]} 9. Nh3 {[%clk 0:01:59]}  c4 {[%clk 0:02:58]} 10. Be3 {[%clk 0:01:44]}  Bb7 {[%clk 0:02:31]} 11. Bxc4 {[%clk 0:01:12]}  Qh4+ {[%clk 0:02:04]} 12. Nf2 {[%clk 0:01:10]}  Be7 {[%clk 0:01:51]} 13. gxh5 {[%clk 0:01:08]}  Qxc4 {[%clk 0:01:51]} 14. d6 {[%clk 0:00:20]}  Bh4 {[%clk 0:01:47]} 15. Nd2 {[%clk 0:00:11]}  Qd5 {[%clk 0:01:47]} 16. Bf4 {[%clk 0:00:07]}  Qd4 {[%clk 0:01:23]} 17. Bg3 {[%clk 0:00:06]}  Bxg3 {[%clk 0:01:05]} 18. hxg3 {[%clk 0:00:06]}  Qxe5+ {[%clk 0:01:06]} 19. Qe2 {[%clk 0:00:06]}  Qxd6 {[%clk 0:01:05]} 20. Nde4 {[%clk 0:00:06]}  Qe7 {[%clk 0:01:05]} 21. Rd1 {[%clk 0:00:04]}  f5 {[%clk 0:00:59]} 22. Nd6+ {[%clk 0:00:03]}  Kf8 {[%clk 0:00:51]} 23. Nxb7 {[%clk 0:00:03]}  d5 {[%clk 0:00:50]} 24. Qb5 {[%clk 0:00:02]}  Nd7 {[%clk 0:00:46]} 0-1


[Site "https://www.chess.com"]

[Event "Titled Tuesday Blitz January 17 Early 2023"]
[White "Bacrot, Etienne"]
[Black "Tokhirjonova, Gulrukhbegim"]
[WhiteFideId "605506"]
[BlackFideId "14203626"]
[WhiteElo "2667"]
[BlackElo "2340"]
[Result "1-0"]
[Round "01"]
[TimeControl "180+2"]
[Date "2023.01.17"]
[WhiteClock "0:00:54"]
[BlackClock "0:00:04"]

1. e4 {[%clk 0:02:55]}  e5 {[%clk 0:02:58]} 2. Nf3 {[%clk 0:02:55]}  Nf6 {[%clk 0:02:57]} 3. Nc3 {[%clk 0:02:53]}  Nc6 {[%clk 0:02:56]} 4. Bb5 {[%clk 0:02:52]}  Bb4 {[%clk 0:02:56]} 5. O-O {[%clk 0:02:51]}  O-O {[%clk 0:02:56]} 6. d3 {[%clk 0:02:46]}  Bxc3 {[%clk 0:02:52]} 7. bxc3 {[%clk 0:02:46]}  d6 {[%clk 0:02:53]} 8. Bg5 {[%clk 0:02:43]}  Ne7 {[%clk 0:02:53]} 9. Bxf6 {[%clk 0:02:42]}  gxf6 {[%clk 0:02:52]} 10. d4 {[%clk 0:02:42]}  Ng6 {[%clk 0:02:47]} 11. Re1 {[%clk 0:02:41]}  Kh8 {[%clk 0:02:40]} 12. Nd2 {[%clk 0:02:25]}  Be6 {[%clk 0:02:32]} 13. g3 {[%clk 0:02:22]}  Rg8 {[%clk 0:02:29]} 14. Bf1 {[%clk 0:02:19]}  c6 {[%clk 0:02:27]} 15. Kh1 {[%clk 0:02:15]}  Qd7 {[%clk 0:02:27]} 16. Qf3 {[%clk 0:02:12]}  f5 {[%clk 0:02:18]} 17. d5 {[%clk 0:01:58]}  fxe4 {[%clk 0:01:36]} 18. dxe6 {[%clk 0:01:51]}  fxe6 {[%clk 0:01:31]} 19. Nxe4 {[%clk 0:01:32]}  Raf8 {[%clk 0:01:29]} 20. Qe3 {[%clk 0:01:32]}  d5 {[%clk 0:01:26]} 21. Nc5 {[%clk 0:01:31]}  Qf7 {[%clk 0:01:23]} 22. Bh3 {[%clk 0:01:21]}  Re8 {[%clk 0:00:46]} 23. f3 {[%clk 0:01:17]}  b6 {[%clk 0:00:45]} 24. Nd3 {[%clk 0:01:17]}  e4 {[%clk 0:00:25]} 25. fxe4 {[%clk 0:01:16]}  e5 {[%clk 0:00:26]} 26. Rf1 {[%clk 0:01:14]}  Qg7 {[%clk 0:00:17]} 27. Rae1 {[%clk 0:01:11]}  Re7 {[%clk 0:00:17]} 28. Bf5 {[%clk 0:01:08]}  Rge8 {[%clk 0:00:08]} 29. Qg5 {[%clk 0:01:06]}  Kg8 {[%clk 0:00:04]} 30. Bxg6 {[%clk 0:00:59]}  hxg6 {[%clk 0:00:05]} 31. Rf6 {[%clk 0:00:58]}  Re6 {[%clk 0:00:05]} 32. Rxe6 {[%clk 0:00:58]}  Rxe6 {[%clk 0:00:06]} 33. exd5 {[%clk 0:00:58]}  cxd5 {[%clk 0:00:06]} 34. Rxe5 {[%clk 0:00:58]}  Rf6 {[%clk 0:00:04]} 35. Re8+ {[%clk 0:00:55]}  Kf7 {[%clk 0:00:04]} 36. Re1 {[%clk 0:00:55]}  d4 {[%clk 0:00:04]} 37. Qd5+ {[%clk 0:00:55]}  Kf8 {[%clk 0:00:04]} 38. Qd8+ {[%clk 0:00:54]} 1-0


[Site "https://www.chess.com"]

[Event "Titled Tuesday Blitz January 17 Early 2023"]
[White "Jares, Michal"]
[Black "Harsh Suresh"]
[WhiteFideId "386839"]
[BlackFideId "45018464"]
[WhiteElo "2177"]
[BlackElo "2298"]
[Result "0-1"]
[Round "01"]
[TimeControl "180+2"]
[Date "2023.01.17"]
[WhiteClock "0:00:06"]
[BlackClock "0:00:06"]

1. Nf3 {[%clk 0:02:59]}  d5 {[%clk 0:02:57]} 2. g3 {[%clk 0:02:51]}  g6 {[%clk 0:02:58]} 3. Bg2 {[%clk 0:02:50]}  Bg7 {[%clk 0:02:58]} 4. d4 {[%clk 0:02:49]}  c5 {[%clk 0:02:54]} 5. O-O {[%clk 0:02:47]}  cxd4 {[%clk 0:02:53]} 6. Nxd4 {[%clk 0:02:47]}  Nc6 {[%clk 0:02:53]} 7. Nxc6 {[%clk 0:02:46]}  bxc6 {[%clk 0:02:53]} 8. c4 {[%clk 0:02:47]}  e6 {[%clk 0:02:53]} 9. Nc3 {[%clk 0:02:45]}  Ne7 {[%clk 0:02:53]} 10. cxd5 {[%clk 0:02:36]}  cxd5 {[%clk 0:02:52]} 11. Bg5 {[%clk 0:02:28]}  O-O {[%clk 0:02:52]} 12. Qd2 {[%clk 0:02:28]}  Bb7 {[%clk 0:02:36]} 13. Bh6 {[%clk 0:02:26]}  Bxh6 {[%clk 0:02:33]} 14. Qxh6 {[%clk 0:02:27]}  Nf5 {[%clk 0:02:34]} 15. Qd2 {[%clk 0:02:26]}  Qb6 {[%clk 0:02:31]} 16. e3 {[%clk 0:02:22]}  Rac8 {[%clk 0:02:25]} 17. Rac1 {[%clk 0:02:21]}  Nd6 {[%clk 0:02:14]} 18. b3 {[%clk 0:02:18]}  Qb4 {[%clk 0:02:06]} 19. Ne4 {[%clk 0:02:12]}  Qxd2 {[%clk 0:02:03]} 20. Nxd2 {[%clk 0:02:13]}  Nb5 {[%clk 0:01:56]} 21. a4 {[%clk 0:01:56]}  Nc3 {[%clk 0:01:53]} 22. Kh1 {[%clk 0:01:41]}  Ba6 {[%clk 0:01:50]} 23. Rfe1 {[%clk 0:01:39]}  Na2 {[%clk 0:01:48]} 24. Rxc8 {[%clk 0:01:31]}  Rxc8 {[%clk 0:01:48]} 25. f4 {[%clk 0:01:15]}  Rc2 {[%clk 0:01:46]} 26. Nf3 {[%clk 0:01:13]}  Rb2 {[%clk 0:01:30]} 27. Nd4 {[%clk 0:01:10]}  Bd3 {[%clk 0:01:26]} 28. Kg1 {[%clk 0:01:06]}  Kg7 {[%clk 0:01:06]} 29. h3 {[%clk 0:00:57]}  Nb4 {[%clk 0:00:29]} 30. Rc1 {[%clk 0:00:52]}  Nc2 {[%clk 0:00:29]} 31. Nxc2 {[%clk 0:00:49]}  Bxc2 {[%clk 0:00:30]} 32. a5 {[%clk 0:00:34]}  a6 {[%clk 0:00:16]} 33. Bf1 {[%clk 0:00:32]}  Bxb3 {[%clk 0:00:14]} 34. Bxa6 {[%clk 0:00:31]}  Ra2 {[%clk 0:00:15]} 35. Rc5 {[%clk 0:00:31]}  Kf6 {[%clk 0:00:10]} 36. Bb7 {[%clk 0:00:31]}  Kf5 {[%clk 0:00:09]} 37. a6 {[%clk 0:00:27]}  Ke4 {[%clk 0:00:08]} 38. Rc8 {[%clk 0:00:24]}  Kf3 {[%clk 0:00:08]} 39. Rc3 {[%clk 0:00:22]}  Bd1 {[%clk 0:00:02]} 40. Rc1 {[%clk 0:00:19]}  Be2 {[%clk 0:00:02]} 41. Bc8 {[%clk 0:00:14]}  Kxg3 {[%clk 0:00:02]} 42. Re1 {[%clk 0:00:11]}  Bxa6 {[%clk 0:00:02]} 43. Bd7 {[%clk 0:00:06]}  Bd3 {[%clk 0:00:02]} 44. Be8 {[%clk 0:00:06]}  Rg2+ {[%clk 0:00:02]} 45. Kh1 {[%clk 0:00:07]}  Be4 {[%clk 0:00:03]} 46. Rg1 {[%clk 0:00:05]}  Kxh3 {[%clk 0:00:03]} 47. Rxg2 {[%clk 0:00:02]}  Bxg2+ {[%clk 0:00:04]} 48. Kg1 {[%clk 0:00:03]}  f6 {[%clk 0:00:05]} 49. Bf7 {[%clk 0:00:04]}  e5 {[%clk 0:00:05]} 50. fxe5 {[%clk 0:00:04]}  fxe5 {[%clk 0:00:05]} 51. Bg8 {[%clk 0:00:05]}  h6 {[%clk 0:00:05]} 52. Be6+ {[%clk 0:00:05]}  Kg3 {[%clk 0:00:05]} 53. Bf7 {[%clk 0:00:06]}  g5 {[%clk 0:00:05]} 54. Be6 {[%clk 0:00:06]}  Be4 {[%clk 0:00:06]} 55. Bf7 {[%clk 0:00:06]}  Kf3 {[%clk 0:00:06]} 0-1


[Site "https://www.chess.com"]

[Event "Titled Tuesday Blitz January 17 Early 2023"]
[White "Krzyzanowski, Marcin"]
[Black "Jovic, Stanoje"]
[WhiteFideId "1132199"]
[BlackFideId "905020"]
[WhiteElo "2512"]
[BlackElo "2075"]
[Result "1-0"]
[Round "01"]
[TimeControl "180+2"]
[Date "2023.01.17"]
[WhiteClock "0:01:13"]
[BlackClock "0:00:58"]

1. e4 {[%clk 0:02:58]}  c6 {[%clk 0:02:59]} 2. Nf3 {[%clk 0:02:57]}  d5 {[%clk 0:02:59]} 3. d3 {[%clk 0:02:57]}  dxe4 {[%clk 0:02:58]} 4. dxe4 {[%clk 0:02:58]}  Qxd1+ {[%clk 0:02:57]} 5. Kxd1 {[%clk 0:02:59]}  Bg4 {[%clk 0:02:57]} 6. Be2 {[%clk 0:02:53]}  Bxf3 {[%clk 0:02:57]} 7. Bxf3 {[%clk 0:02:52]}  h5 {[%clk 0:02:57]} 8. a4 {[%clk 0:02:50]}  g6 {[%clk 0:02:57]} 9. a5 {[%clk 0:02:47]}  Bh6 {[%clk 0:02:52]} 10. Nd2 {[%clk 0:02:42]}  Na6 {[%clk 0:02:44]} 11. Nc4 {[%clk 0:02:41]}  Bxc1 {[%clk 0:02:34]} 12. Kxc1 {[%clk 0:02:39]}  O-O-O {[%clk 0:02:33]} 13. Re1 {[%clk 0:02:23]}  Nf6 {[%clk 0:02:26]} 14. h3 {[%clk 0:02:17]}  Nd7 {[%clk 0:02:14]} 15. Ra3 {[%clk 0:02:08]}  Kc7 {[%clk 0:02:10]} 16. e5 {[%clk 0:01:59]}  Ndc5 {[%clk 0:02:02]} 17. e6 {[%clk 0:01:57]}  fxe6 {[%clk 0:01:52]} 18. Ne5 {[%clk 0:01:57]}  Rhg8 {[%clk 0:01:45]} 19. Rc3 {[%clk 0:01:46]}  Rd4 {[%clk 0:01:37]} 20. b3 {[%clk 0:01:24]}  Nd7 {[%clk 0:01:19]} 21. Nxc6 {[%clk 0:01:18]}  bxc6 {[%clk 0:01:09]} 22. Rxc6+ {[%clk 0:01:19]}  Kb8 {[%clk 0:01:06]} 23. Rxa6 {[%clk 0:01:18]}  Nc5 {[%clk 0:01:05]} 24. Rc6 {[%clk 0:01:18]}  Rc8 {[%clk 0:01:05]} 25. Rxc8+ {[%clk 0:01:16]}  Kxc8 {[%clk 0:01:05]} 26. Re5 {[%clk 0:01:14]}  Nd7 {[%clk 0:00:58]} 27. Rxe6 {[%clk 0:01:14]}  Rd6 {[%clk 0:00:58]} 28. Rxe7 {[%clk 0:01:13]} 1-0


[Site "https://www.chess.com"]

[Event "Titled Tuesday Blitz January 17 Early 2023"]
[White "Mestnikov, Aisen"]
[Black "Samunenkov, Ihor"]
[WhiteFideId "34130117"]
[BlackFideId "14187086"]
[WhiteElo "2078"]
[BlackElo "2501"]
[Result "0-1"]
[Round "01"]
[TimeControl "180+2"]
[Date "2023.01.17"]
[WhiteClock "0:00:03"]
[BlackClock "0:00:10"]

1. d4 {[%clk 0:02:56]}  Nf6 {[%clk 0:02:58]} 2. c4 {[%clk 0:02:56]}  e6 {[%clk 0:02:58]} 3. Nf3 {[%clk 0:02:55]}  b6 {[%clk 0:02:58]} 4. g3 {[%clk 0:02:54]}  c6 {[%clk 0:02:57]} 5. Bg2 {[%clk 0:02:54]}  Be7 {[%clk 0:02:58]} 6. Nc3 {[%clk 0:02:54]}  d5 {[%clk 0:02:57]} 7. O-O {[%clk 0:02:54]}  O-O {[%clk 0:02:57]} 8. Bf4 {[%clk 0:02:45]}  dxc4 {[%clk 0:02:56]} 9. Ne5 {[%clk 0:02:30]}  Nd5 {[%clk 0:02:55]} 10. Nxc4 {[%clk 0:02:29]}  Nd7 {[%clk 0:02:37]} 11. Bd2 {[%clk 0:02:20]}  Ba6 {[%clk 0:02:33]} 12. Qa4 {[%clk 0:01:58]}  Qc8 {[%clk 0:02:19]} 13. Qb3 {[%clk 0:01:42]}  N7f6 {[%clk 0:01:36]} 14. Rac1 {[%clk 0:01:34]}  Rd8 {[%clk 0:01:32]} 15. Bf3 {[%clk 0:01:25]}  c5 {[%clk 0:00:56]} 16. dxc5 {[%clk 0:01:25]}  Bxc5 {[%clk 0:00:56]} 17. Nb5 {[%clk 0:01:22]}  Qd7 {[%clk 0:00:54]} 18. a4 {[%clk 0:01:19]}  Rac8 {[%clk 0:00:53]} 19. Rfd1 {[%clk 0:01:16]}  Qe7 {[%clk 0:00:48]} 20. e4 {[%clk 0:01:15]}  Nb4 {[%clk 0:00:33]} 21. e5 {[%clk 0:00:55]}  Nd3 {[%clk 0:00:23]} 22. exf6 {[%clk 0:00:40]}  Qxf6 {[%clk 0:00:23]} 23. Be3 {[%clk 0:00:37]}  Bxe3 {[%clk 0:00:13]} 24. fxe3 {[%clk 0:00:36]}  Nxc1 {[%clk 0:00:13]} 25. Rxc1 {[%clk 0:00:23]}  Qxf3 {[%clk 0:00:12]} 26. Qb4 {[%clk 0:00:07]}  Bb7 {[%clk 0:00:11]} 27. e4 {[%clk 0:00:03]}  Bxe4 {[%clk 0:00:10]} 0-1


[Site "https://www.chess.com"]

[Event "Titled Tuesday Blitz January 17 Early 2023"]
[White "Avazkhonov, Alikhon"]
[Black "Bernadskiy, Vitaliy"]
[WhiteFideId "14208504"]
[BlackFideId "14100371"]
[WhiteElo "1538"]
[BlackElo "2592"]
[Result "0-1"]
[Round "01"]
[TimeControl "180+2"]
[Date "2023.01.17"]
[WhiteClock "0:00:01"]
[BlackClock "0:01:45"]

1. d4 {[%clk 0:02:59]}  e6 {[%clk 0:02:58]} 2. c4 {[%clk 0:02:58]}  b6 {[%clk 0:02:55]} 3. e4 {[%clk 0:02:55]}  Bb7 {[%clk 0:02:53]} 4. Nc3 {[%clk 0:02:55]}  Bb4 {[%clk 0:02:52]} 5. Bd3 {[%clk 0:02:43]}  f5 {[%clk 0:02:48]} 6. f3 {[%clk 0:02:36]}  fxe4 {[%clk 0:02:48]} 7. fxe4 {[%clk 0:02:36]}  Nf6 {[%clk 0:02:36]} 8. d5 {[%clk 0:01:22]}  O-O {[%clk 0:02:32]} 9. Nf3 {[%clk 0:01:09]}  b5 {[%clk 0:02:23]} 10. cxb5 {[%clk 0:00:43]}  exd5 {[%clk 0:02:22]} 11. e5 {[%clk 0:00:43]}  Ne4 {[%clk 0:02:22]} 12. Qb3 {[%clk 0:00:22]}  Nc5 {[%clk 0:02:16]} 13. Qc2 {[%clk 0:00:22]}  Rxf3 {[%clk 0:02:14]} 14. gxf3 {[%clk 0:00:21]}  d4 {[%clk 0:02:07]} 15. a3 {[%clk 0:00:17]}  Qh4+ {[%clk 0:02:06]} 16. Ke2 {[%clk 0:00:11]}  Bxf3+ {[%clk 0:01:53]} 17. Kxf3 {[%clk 0:00:11]}  Nc6 {[%clk 0:01:53]} 18. Bc4+ {[%clk 0:00:04]}  Kh8 {[%clk 0:01:52]} 19. Bf4 {[%clk 0:00:05]}  dxc3 {[%clk 0:01:47]} 20. axb4 {[%clk 0:00:04]}  Nd4+ {[%clk 0:01:46]} 21. Kg2 {[%clk 0:00:03]}  Nxc2 {[%clk 0:01:46]} 22. bxc5 {[%clk 0:00:02]}  Qxf4 {[%clk 0:01:46]} 23. Bd3 {[%clk 0:00:01]}  Ne3+ {[%clk 0:01:45]} 0-1


[Site "https://www.chess.com"]